fUST/lending_fUST_20250310
["ID","MTS","AMOUNT","RATE_DAILY","PERIOD"]
[355803865,1741593046882,-1000.0,0.00054794,5]
[355803866,1741593046891,-500.0,0.00054794,2]
[355803867,1741593046900,-87.17910719,0.00054794,120]
[355803868,1741593046996,-412.82089281,0.00054794,120]
[355803869,1741593047006,-67.73547947,0.00054794,120]
[355803870,1741593047017,-554.7951754,0.00054794,120]
[355803871,1741593047027,-500.0,0.00054794,120]
[355803872,1741593047036,-500.0,0.00054794,120]
[355803873,1741593047045,-500.0,0.00054794,120]
[355803874,1741593047054,-902.85,0.00054794,120]
[355803875,1741593047063,-500.0,0.00054794,120]
[355803876,1741593047073,-537.54858499,0.00054794,120]
[355803877,1741593047082,-360.02512577,0.00054794,120]
[355803878,1741593047091,-500.0,0.00054794,120]
[355803879,1741593047101,-500.0,0.00054794,120]
[355803880,1741593047110,-500.0,0.00054794,120]
[355803881,1741593047119,-922.66,0.00054794,120]
[355803882,1741593047128,-500.0,0.00054794,120]
[355803883,1741593047137,-500.0,0.00054794,120]
[355803884,1741593047146,-500.0,0.00054794,120]
[355803885,1741593047155,-500.0,0.00054794,7]
[355803886,1741593047164,-354.01740238,0.00054794,120]
[355803887,1741593047176,-169.09302461,0.00054794,120]
[355803888,1741593047186,-526.4357873,0.00054794,120]
[355803889,1741593047195,-500.0,0.00054794,120]
[355803890,1741593047204,-27.74829696,0.00054794,120]
[355803891,1741593047370,-516.54102326,0.00054794,120]
[355803892,1741593047379,-483.45897674,0.00054794,120]
[355803904,1741594012113,-241.69327646,0.00035,14]
[355803906,1741594172147,850.0,0.00025205,30]
[355803951,1741594232214,-327.91072655,0.000329,2]
[355803952,1741594232225,-177.579,0.00035,5]
[355803953,1741594232236,-52.30672354,0.00035,14]
[355803954,1741594232245,-243.447747,0.0003589,2]
[355803955,1741594232257,-1131.02641708,0.000379,8]
[355803956,1741594232267,-327.91072655,0.000379,2]
[355803957,1741594232277,-150.0,0.00038025,2]
[355803958,1741594232287,-150.0,0.00039395,2]
[355803959,1741594232298,-600.0,0.00040039,2]
[355803960,1741594232309,-160.0,0.0004006,2]
[355803961,1741594232319,-1343.70847665,0.00040061,2]
[355803962,1741594232345,-16461.05148196,0.00040061,2]
[355803963,1741594232355,-2486.19806908,0.00040063,2]
[355803964,1741594232413,-1576.98506532,0.00040063,2]
[355803965,1741594232425,-1097.0,0.00040063,2]
[355803985,1741594238105,-214.0357959,0.00037925,108]
[355803986,1741594238115,-500.0,0.0004006,2]
[355803987,1741594238127,-500.0,0.0004006,2]
[355803988,1741594238136,-500.0,0.0004006,2]
[355803989,1741594238147,-455.60978959,0.0004006,2]
[355803990,1741594238165,-44.39021041,0.0004006,2]
[355803991,1741594238174,-500.0,0.0004006,2]
[355803992,1741594238184,-239.06008184,0.0004006,2]
[355803993,1741594238194,-500.0,0.0004006,2]
[355803994,1741594238205,-33.04229137,0.0004006,2]
[355804007,1741594240310,-466.95770863,0.0004006,2]
[355804008,1741594240320,-500.0,0.0004006,2]
[355804009,1741594240331,-500.0,0.0004006,2]
[355804010,1741594240341,-19739.8168656,0.00040063,2]
[355804011,1741594240352,-622.2,0.00040094,2]
[355804012,1741594240362,-500.0,0.000401,5]
[355804013,1741594240374,-500.0,0.000401,2]
[355804014,1741594240384,-209.40546444,0.000401,5]
[355804015,1741594240394,-500.0,0.000401,5]
[355804016,1741594240404,-500.0,0.000401,5]
[355804017,1741594240414,-512.61441647,0.000401,5]
[355804018,1741594240424,-645.2214,0.00040149,2]
[355804019,1741594240433,-669.0945918,0.00040204,2]
[355804020,1741594240442,-693.8510917,0.00040259,2]
[355804021,1741594240451,-1241.80512075,0.00040314,2]
[355804022,1741594240461,-190.17,0.00040765,2]
[355804023,1741594240471,-243.447747,0.00041211,2]
[355804024,1741594240480,-1000.0,0.00045579,10]
[355804025,1741594240490,-1000.0,0.00045579,10]
[355804026,1741594240499,-1000.0,0.00045579,10]
[355804027,1741594240508,-416.66666667,0.00046151,2]
[355804028,1741594240518,-150.0,0.00046204,2]
[355804029,1741594240527,-398.0,0.00046204,2]
[355804030,1741594240537,-243.447747,0.00046532,2]
[355804031,1741594240547,-10597.05784013,0.00048595,2]
[355804032,1741594240556,-398.0,0.00049204,2]
[355804033,1741594240567,-153.7,0.000493,45]
[355804034,1741594240576,-153.7,0.000493,45]
[355804035,1741594240587,-153.7,0.000493,45]
[355804036,1741594240597,-500.0,0.00049315,120]
[355804037,1741594240606,-251.15335344,0.00049315,10]
[355804038,1741594240616,-500.0,0.00049554,93]
[355804039,1741594240627,-575.79321885,0.00049589,120]
[355804040,1741594240637,-500.0,0.00049654,95]
[355804041,1741594240647,-500.0,0.00049754,100]
[355804042,1741594240658,-500.0,0.00049854,97]
[355804043,1741594240667,-500.0,0.00049954,98]
[355804044,1741594240676,-3283.05511101,0.0005,120]
[355804045,1741594240686,-500.0,0.00050054,95]
[355804046,1741594240696,-500.0,0.00050154,92]
[355804047,1741594240706,-500.0,0.00050254,96]
[355804048,1741594240715,-500.0,0.00050354,99]
[355804049,1741594240725,-500.0,0.00050454,99]
[355804050,1741594240734,-500.0,0.00050554,90]
[355804051,1741594240743,-500.0,0.00050654,90]
[355804052,1741594240754,-500.0,0.00050754,97]
[355804053,1741594240763,-430.21,0.000508,2]
[355804054,1741594240773,-163.74703763,0.0005082,2]
[355804055,1741594240782,-500.0,0.00050854,93]
[355804056,1741594240791,-308.62,0.0005091,30]
[355804057,1741594240802,-3280.43,0.0005091,10]
[355804058,1741594240811,-273.82,0.0005091,30]
[355804059,1741594240820,-2733.69,0.0005091,10]
[355804060,1741594240829,-2278.07,0.0005091,10]
[355804061,1741594240838,-3462.63,0.00050919,120]
[355804062,1741594240847,-13868.42461888,0.0005092,80]
[355804063,1741594240874,-974.11163566,0.0005092,80]
[355804080,1741594243207,-658.54303759,0.0005091,10]
[355804081,1741594243267,-862.31510981,0.0005091,10]
[355804085,1741594243428,-26.8548085,0.0005091,10]
[355804099,1741594246130,-10157.46374546,0.0005092,80]
[355804100,1741594246141,-4672.8804134,0.0005092,30]
[355804101,1741594246151,-161.377,0.0005092,120]
[355804102,1741594246160,-150.0,0.0005092,120]
[355804103,1741594246171,-150.0,0.0005092,120]
[355804104,1741594246180,-150.0,0.0005092,120]
[355804105,1741594246190,-150.0,0.0005092,120]
[355804106,1741594246199,-150.0,0.0005092,120]
[355804107,1741594246210,-43.62850509,0.0005092,120]
[355804108,1741594246389,-106.37149491,0.0005092,120]
[355804109,1741594246398,-150.0,0.0005092,120]
[355804110,1741594246408,-150.0,0.0005092,120]
[355804111,1741594246418,-150.0,0.0005092,120]
[355804112,1741594246429,-150.0,0.0005092,120]
[355804113,1741594246438,-150.0,0.0005092,120]
[355804114,1741594246448,-150.0,0.0005092,120]
[355804115,1741594246457,-150.0,0.0005092,120]
[355804116,1741594246467,-150.0,0.0005092,120]
[355804117,1741594246477,-150.0,0.0005092,120]
[355804118,1741594246486,-150.0,0.0005092,120]
[355804119,1741594246496,-150.0,0.0005092,120]
[355804120,1741594246506,-150.0,0.0005092,120]
[355804121,1741594246515,-1961.233,0.0005092,120]
[355804122,1741594246528,-1945.0,0.0005092,120]
[355804123,1741594246538,-1945.0,0.0005092,120]
[355804124,1741594246548,-1945.0,0.0005092,120]
[355804125,1741594246557,-1945.0,0.0005092,120]
[355804126,1741594246573,-1945.0,0.0005092,120]
[355804127,1741594246593,-1945.0,0.0005092,120]
[355804128,1741594246602,-1945.0,0.0005092,120]
[355804129,1741594246611,-1945.0,0.0005092,120]
[355804130,1741594246621,-1945.0,0.0005092,120]
[355804131,1741594246631,-1945.0,0.0005092,120]
[355804132,1741594246640,-1945.0,0.0005092,120]
[355804133,1741594246650,-1945.0,0.0005092,120]
[355804134,1741594246659,-557.897,0.0005092,120]
[355804135,1741594246668,-1945.0,0.0005092,120]
[355804136,1741594246677,-540.0,0.0005092,120]
[355804137,1741594246687,-1945.0,0.0005092,120]
[355804138,1741594246696,-540.0,0.0005092,120]
[355804139,1741594246706,-1945.0,0.0005092,120]
[355804140,1741594246715,-540.0,0.0005092,120]
[355804141,1741594246724,-1945.0,0.0005092,120]
[355804142,1741594246733,-1945.0,0.0005092,120]
[355804143,1741594246742,-540.0,0.0005092,120]
[355804144,1741594246751,-1945.0,0.0005092,120]
[355804145,1741594246760,-540.0,0.0005092,120]
[355804146,1741594246770,-1945.0,0.0005092,120]
[355804147,1741594246779,-540.0,0.0005092,120]
[355804148,1741594246789,-1945.0,0.0005092,120]
[355804149,1741594246798,-540.0,0.0005092,120]
[355804150,1741594246808,-540.0,0.0005092,120]
[355804151,1741594246817,-1945.0,0.0005092,120]
[355804152,1741594246826,-540.0,0.0005092,120]
[355804153,1741594246835,-540.0,0.0005092,120]
[355804154,1741594246845,-540.0,0.0005092,120]
[355804155,1741594246855,-540.0,0.0005092,120]
[355804156,1741594246864,-540.0,0.0005092,120]
[355804157,1741594246874,-540.0,0.0005092,120]
[355804158,1741594246886,-540.0,0.0005092,120]
[355804159,1741594246895,-540.0,0.0005092,120]
[355804160,1741594246905,-540.0,0.0005092,120]
[355804161,1741594246914,-540.0,0.0005092,120]
[355804162,1741594246924,-540.0,0.0005092,120]
[355804163,1741594246934,-540.0,0.0005092,120]
[355804164,1741594246944,-540.0,0.0005092,120]
[355804165,1741594246953,-2274.0,0.0005092,120]
[355804166,1741594246963,-2274.0,0.0005092,120]
[355804167,1741594246972,-2274.0,0.0005092,120]
[355804168,1741594246982,-2274.0,0.0005092,120]
[355804169,1741594246991,-2274.0,0.0005092,120]
[355804170,1741594247001,-2274.0,0.0005092,120]
[355804171,1741594247093,-2274.0,0.0005092,120]
[355804172,1741594247103,-2274.0,0.0005092,120]
[355804173,1741594247113,-2274.0,0.0005092,120]
[355804174,1741594247123,-2274.0,0.0005092,120]
[355804175,1741594247133,-2274.0,0.0005092,120]
[355804176,1741594247146,-2274.0,0.0005092,120]
[355804177,1741594247159,-2274.0,0.0005092,120]
[355804178,1741594247170,-2274.0,0.0005092,120]
[355804179,1741594247180,-2274.0,0.0005092,120]
[355804180,1741594247189,-2274.0,0.0005092,120]
[355804181,1741594247199,-2274.0,0.0005092,120]
[355804182,1741594247209,-2274.0,0.0005092,120]
[355804183,1741594247219,-2274.0,0.0005092,120]
[355804184,1741594247233,-2274.0,0.0005092,120]
[355804185,1741594247242,-2274.0,0.0005092,120]
[355804186,1741594247252,-2256.784,0.0005092,120]
[355804187,1741594247262,-401.203,0.0005092,120]
[355804188,1741594247274,-398.0,0.0005092,120]
[355804189,1741594247283,-398.0,0.0005092,120]
[355804190,1741594247292,-398.0,0.0005092,120]
[355804191,1741594247303,-500.0,0.00050954,90]
[355804192,1741594247314,-500.0,0.00051054,91]
[355804193,1741594247324,-500.0,0.00051154,97]
[355804194,1741594247334,-500.0,0.00051254,99]
[355804195,1741594247343,-787.54,0.00051354,97]
[355804196,1741594247352,-153.7,0.000517,51]
[355804197,1741594247363,-153.7,0.000517,51]
[355804198,1741594247372,-153.7,0.000517,51]
[355804199,1741594247382,-153.7,0.000517,51]
[355804200,1741594247392,-153.7,0.000517,51]
[355804201,1741594247402,-153.7,0.000517,51]
[355804202,1741594247412,-243.447747,0.00051853,2]
[355804203,1741594247422,-398.0,0.00052204,2]
[355804204,1741594247432,-921.80894842,0.000528,2]
[355804205,1741594247441,-167.7966245,0.00053178,120]
[355804206,1741594247451,-167.7966245,0.00053178,120]
[355804207,1741594247460,-211.2338151,0.00053178,120]
[355804208,1741594247470,-807.3754764,0.00053698,4]
[355804209,1741594247479,-1000.0,0.00054,120]
[355804210,1741594247489,-2000.0,0.00054,120]
[355804211,1741594247498,-153.7,0.00054,54]
[355804212,1741594247508,-153.7,0.00054,54]
[355804213,1741594247517,-153.7,0.00054,54]
[355804214,1741594247527,-153.7,0.00054,54]
[355804215,1741594247537,-153.7,0.00054,54]
[355804216,1741594247547,-153.7,0.00054,54]
[355804217,1741594247556,-1000.0,0.000545,120]
[355804218,1741594247565,-49318.96691591,0.00054693,90]
[355804219,1741594247576,-24925.93110451,0.00054694,2]
[355804221,1741594293297,804.72488792,0.00025894,120]
[355804280,1741594952931,10000.0,0.0002,60]
[355804281,1741594960779,10000.0,0.0002,120]
[355804282,1741594969400,10000.0,0.00025,10]
[355804290,1741594984676,8677.0,0.0002,30]
[355804291,1741595245295,161.28331868,0.000229,2]
[355804297,1741595345218,-161.28331868,0.000279,2]
[355804298,1741595345240,-270.2899235,0.0002801,2]
[355804299,1741595345261,-571.74554011,0.00030728,2]
[355804300,1741595345282,-161.28331868,0.000329,2]
[355804301,1741595345303,-978.19023014,0.0003399,2]
[355804355,1741595432353,-475.9,0.0003399,2]
[355804356,1741595432408,-430.44671678,0.0003399,2]
[355804357,1741595432418,-99743.95867647,0.00034,2]
[355804358,1741595432427,-194.758197,0.0003589,2]
[355804359,1741595432437,-1093.32553653,0.000359,7]
[355804360,1741595432446,-385.26443262,0.000409,120]
[355804361,1741595432456,-159.0,0.00041,14]
[355804362,1741595432466,-194.758197,0.00041211,2]
[355804363,1741595432476,-214.76,0.000413,30]
[355804364,1741595432485,-500.0,0.00041539,42]
[355804365,1741595432495,-23404.53582839,0.00043,7]
[355804366,1741595432504,-1640.44,0.00043258,10]
[355804367,1741595432513,-1367.04,0.00043258,10]
[355804368,1741595432523,-1139.2,0.00043258,10]
[355804369,1741595432532,-1319.30774322,0.00043268,2]
[355804377,1741595438230,-23580.69225678,0.00043268,2]
[355804378,1741595438240,-194.758197,0.00046532,2]
[355804379,1741595438249,-1101.54512701,0.00048,120]
[355804380,1741595438258,-398.0,0.00048574,2]
[355804381,1741595438267,-6687.33389966,0.000489,120]
[355804382,1741595438277,-177.48246879,0.00049115,2]
[355804383,1741595438286,-500.0,0.00049315,10]
[355804384,1741595438295,-153.6,0.000494,45]
[355804385,1741595438305,-153.6,0.000494,45]
[355804386,1741595438314,-153.6,0.000494,45]
[355804387,1741595438323,-153.6,0.000494,45]
[355804388,1741595438333,-13538.77127828,0.000495,120]
[355804389,1741595438342,-500.0,0.00049628,10]
[355804390,1741595438350,-500.0,0.00049628,10]
[355804391,1741595438359,-500.0,0.00049628,10]
[355804392,1741595438368,-500.0,0.00049628,10]
[355804393,1741595438378,-519.12714552,0.00049628,10]
[355804394,1741595438387,-500.0,0.00049628,10]
[355804395,1741595438396,-177.48246877,0.00049968,2]
[355804396,1741595438405,-1550.0,0.0005,7]
[355804397,1741595438413,-214.76,0.0005,30]
[355804398,1741595438422,-1884.53694692,0.00050698,4]
[355804399,1741595438431,-9749.98217878,0.00050708,30]
[355804400,1741595438441,-319.9607705,0.00050717,2]
[355804401,1741595438450,-500.0,0.00050721,120]
[355804402,1741595438459,-500.0,0.00050781,6]
[355804403,1741595438468,-7538.14778768,0.00050808,4]
[355804404,1741595438477,-526.56223132,0.00050817,2]
[355804405,1741595438486,-160.844,0.00050817,91]
[355804406,1741595438495,-3318.36,0.00050818,120]
[355804407,1741595438504,-132449.97263541,0.00050818,71]
[355804408,1741595438514,-17459.1332662,0.00050818,71]
[355804409,1741595438523,-222000.0,0.00050818,2]
[355804410,1741595438533,-177.48246877,0.00050821,2]
[355804411,1741595438542,-237.97,0.00050821,120]
[355804412,1741595438551,-158.66,0.00050821,120]
[355804413,1741595438561,-55555.0,0.00050821,120]
[355804414,1741595438570,-1884.53694692,0.00050863,4]
[355804415,1741595438580,-9749.98217878,0.00050874,30]
[355804416,1741595438589,-168.95428616,0.00050888,2]
[355804417,1741595438602,-600.0,0.00050891,2]
[355804418,1741595438611,-387.19,0.000509,2]
[355804419,1741595438722,-150.0,0.00050909,120]
[355804420,1741595438731,-500.0,0.00050909,120]
[355804421,1741595438741,-5653.61084076,0.00050911,4]
[355804422,1741595438750,-500.0,0.00050918,6]
[355804423,1741595438759,-151.0,0.00050918,120]
[355804424,1741595438768,-151.0,0.00050918,120]
[355804425,1741595438778,-151.0,0.00050918,120]
[355804426,1741595438787,-151.0,0.00050918,120]
[355804427,1741595438796,-151.0,0.00050918,120]
[355804428,1741595438806,-154.902076,0.00050918,120]
[355804429,1741595438815,-150.0,0.00050918,30]
[355804430,1741595438824,-500.0,0.00050918,5]
[355804431,1741595438833,-154.905345,0.00050921,120]
[355804432,1741595438842,-7483.26057205,0.00050921,2]
[355804433,1741595438851,-364055.25783201,0.00050921,70]
[355804434,1741595438861,-5000.0,0.00050921,120]
[355804435,1741595438870,-5000.0,0.00050921,120]
[355804436,1741595438880,-5000.0,0.00050921,120]
[355804437,1741595438889,-5000.0,0.00050921,120]
[355804438,1741595438898,-5000.0,0.00050921,120]
[355804439,1741595438907,-5000.0,0.00050921,120]
[355804440,1741595438917,-5000.0,0.00050921,120]
[355804441,1741595438925,-5000.0,0.00050921,120]
[355804442,1741595438935,-25000.0,0.00050921,80]
[355804443,1741595438944,-25000.0,0.00050921,85]
[355804444,1741595438953,-25000.0,0.00050921,90]
[355804445,1741595438963,-24000.0,0.00050921,29]
[355804446,1741595438973,-992.045144,0.00050921,29]
[355804447,1741595438982,-398.0,0.00050921,120]
[355804448,1741595438991,-398.0,0.00050921,120]
[355804449,1741595438999,-398.0,0.00050921,120]
[355804450,1741595439009,-398.0,0.00050921,120]
[355804451,1741595439018,-398.0,0.00050921,120]
[355804452,1741595439027,-398.0,0.00050921,120]
[355804453,1741595439036,-398.0,0.00050921,120]
[355804454,1741595439045,-398.0,0.00050921,120]
[355804455,1741595439054,-398.0,0.00050921,120]
[355804456,1741595439063,-398.0,0.00050921,120]
[355804457,1741595439072,-398.0,0.00050921,120]
[355804458,1741595439082,-164715.90558254,0.00050921,120]
[355804459,1741595439091,-123565.56824813,0.00050921,7]
[355804460,1741595439101,-163.56987105,0.00050921,120]
[355804461,1741595439109,-3060.56045777,0.00050921,2]
[355804462,1741595439118,-90408.44882586,0.00050921,2]
[355804463,1741595439128,-1883.46983028,0.00050921,120]
[355804464,1741595439137,-20000.0,0.00050921,2]
[355804465,1741595439146,-16702.28042314,0.00050921,2]
[355804466,1741595439155,-300.0,0.00050921,2]
[355804467,1741595439165,-802.99888593,0.00050921,2]
[355804468,1741595439174,-40870.94874538,0.00050921,30]
[355804469,1741595439183,-1488.4671155,0.00050921,32]
[355804470,1741595439193,-252.67990472,0.00050921,2]
[355804471,1741595439203,-294.41925536,0.00050921,2]
[355804472,1741595439212,-815.46903214,0.00050921,2]
[355804473,1741595439222,-1646.10713396,0.00050921,2]
[355804474,1741595439233,-47054.765845,0.00050921,120]
[355804475,1741595439242,-324.30007276,0.00050921,2]
[355804476,1741595439251,-1199.36223742,0.00050921,2]
[355804477,1741595439261,-289.42990553,0.00050921,2]
[355804478,1741595439270,-18498.76415288,0.00050921,2]
[355804479,1741595439279,-4149.27331098,0.00050921,7]
[355804480,1741595439288,-10218.3830588,0.00050921,2]
[355804481,1741595439298,-10020.96370552,0.00050921,2]
[355804482,1741595439307,-915.66239037,0.00050921,2]
[355804483,1741595439317,-6241.12623843,0.00050921,2]
[355804484,1741595439326,-156.25220531,0.00050921,2]
[355804485,1741595439336,-522.10300259,0.00050921,2]
[355804486,1741595439345,-1700.32003017,0.00050921,2]
[355804487,1741595439354,-252.45206838,0.00050921,2]
[355804488,1741595439363,-442.38226529,0.00050921,2]
[355804489,1741595439373,-1853.66050659,0.00050921,2]
[355804490,1741595439382,-200.0,0.00050921,10]
[355804491,1741595439391,-503.47767564,0.00050921,2]
[355804492,1741595439401,-13667.51612475,0.00050921,2]
[355804493,1741595439410,-464.26212447,0.00050921,2]
[355804494,1741595439420,-1860.18828189,0.00050921,2]
[355804495,1741595439430,-177.70590413,0.00050921,2]
[355804496,1741595439439,-505.88298114,0.00050921,7]
[355804497,1741595439448,-40741.41425115,0.00050921,20]
[355804498,1741595439458,-30200.63948745,0.00050921,3]
[355804499,1741595439467,-24991.66313239,0.00050921,120]
[355804500,1741595439477,-100127.24687587,0.00050921,2]
[355804501,1741595439486,-187.66003611,0.00050921,2]
[355804502,1741595439495,-300.73533698,0.00050921,2]
[355804503,1741595439504,-1385.49207614,0.00050921,2]
[355804504,1741595439516,-582.04464112,0.00050921,2]
[355804505,1741595439525,-5846.91101883,0.00050921,2]
[355804506,1741595439536,-24245.61185557,0.00050921,30]
[355804507,1741595439545,-31558.72798624,0.00050921,2]
[355804508,1741595439555,-151.46550032,0.00050921,2]
[355804509,1741595439564,-9362.15824297,0.00050921,2]
[355804510,1741595439573,-163.41046508,0.00050921,7]
[355804511,1741595439583,-468.84791808,0.00050973,10]
[355804512,1741595439592,-251.54440811,0.00050973,10]
[355804513,1741595439602,-616.96585768,0.00050973,10]
[355804514,1741595439614,-258.35886679,0.00050973,7]
[355804515,1741595439623,-500.0,0.00050995,120]
[355804516,1741595439633,-500.0,0.00051269,120]
[355804517,1741595439644,-500.0,0.00051543,120]
[355804518,1741595439653,-398.0,0.00051574,2]
[355804519,1741595439663,-300.0,0.00051594,120]
[355804520,1741595439672,-153.6,0.000517,51]
[355804521,1741595439682,-153.6,0.000517,51]
[355804522,1741595439695,-153.6,0.000517,51]
[355804523,1741595439704,-153.6,0.000517,51]
[355804524,1741595439714,-153.6,0.000517,51]
[355804525,1741595439724,-153.6,0.000517,51]
[355804526,1741595439734,-153.6,0.000517,51]
[355804527,1741595439744,-153.6,0.000517,51]
[355804528,1741595439754,-500.0,0.00051817,120]
[355804529,1741595439764,-194.758197,0.00051853,2]
[355804530,1741595439773,-3383.0,0.00052,120]
[355804531,1741595439783,-450.0,0.00052279,120]
[355804532,1741595439792,-150.0,0.00052287,30]
[355804533,1741595439802,-214.76,0.000528,30]
[355804534,1741595439812,-600.0,0.000528,2]
[355804535,1741595439822,-600.0,0.00052964,120]
[355804536,1741595439831,-600.0,0.0005335,2]
[355804537,1741595439840,-750.0,0.00053649,120]
[355804538,1741595439850,-150.0,0.00053657,30]
[355804539,1741595439860,-605.5316073,0.00053698,4]
[355804540,1741595439870,-210.0,0.00053753,120]
[355804541,1741595439879,-1884.53694692,0.0005379,4]
[355804542,1741595439888,-151.0,0.000538,120]
[355804543,1741595439897,-151.0,0.000538,10]
[355804544,1741595439907,-47029.36917757,0.000538,120]
[355804545,1741595439916,-153.567,0.000538,120]
[355804546,1741595439926,-153.567,0.000538,120]
[355804547,1741595439936,-151.0,0.000538,120]
[355804548,1741595439945,-151.0,0.000538,120]
[355804549,1741595439955,-151.0,0.000538,120]
[355804550,1741595439965,-600.0,0.000539,2]
[355804551,1741595439975,-153.6,0.00054,54]
[355804552,1741595439984,-153.6,0.00054,54]
[355804553,1741595439994,-153.6,0.00054,54]
[355804554,1741595440004,-153.6,0.00054,54]
[355804555,1741595440013,-153.6,0.00054,54]
[355804556,1741595440024,-153.6,0.00054,54]
[355804557,1741595440033,-153.6,0.00054,54]
[355804558,1741595440043,-153.6,0.00054,54]
[355804560,1741595440053,-1000.0,0.00054,120]
[355804562,1741595440063,-558.12216406,0.00054,120]
[355804564,1741595440073,-3383.0,0.00054,120]
[355804566,1741595440082,-900.0,0.00054334,120]
[355804567,1741595440169,-151.0,0.000544,22]
[355804569,1741595440179,-600.0,0.0005445,2]
[355804571,1741595440189,-398.0,0.00054574,2]
[355804573,1741595440198,-3769.07389384,0.00054584,4]
[355804574,1741595440208,-151.0,0.00054594,120]
[355804576,1741595440217,-199.372977,0.00054594,120]
[355804577,1741595440228,-151.0,0.00054594,120]
[355804578,1741595440238,-151.0,0.00054594,120]
[355804579,1741595440247,-205.61,0.00054594,120]
[355804580,1741595440256,-179.37604099,0.00054694,62]
[355804581,1741595440266,-512.66521294,0.00054694,32]
[355804582,1741595440275,-500.0,0.00054773,10]
[355804583,1741595440284,-502.28483876,0.00054773,5]
[355804585,1741595440294,-500.0,0.00054773,5]
[355804587,1741595440303,-505.53305858,0.00054773,10]
[355804589,1741595440312,-502.860608,0.00054773,10]
[355804591,1741595440322,-513.59064664,0.00054773,10]
[355804592,1741595440331,-503.28725935,0.00054773,10]
[355804593,1741595440341,-500.0,0.00054773,10]
[355804594,1741595440350,-500.0,0.00054773,10]
[355804595,1741595440360,-302.0,0.00054773,5]
[355804596,1741595440369,-500.0,0.00054773,10]
[355804597,1741595440378,-504.13604379,0.00054773,10]
[355804598,1741595440388,-500.0,0.00054773,10]
[355804599,1741595440397,-503.86005574,0.00054773,10]
[355804600,1741595440406,-500.0,0.00054773,10]
[355804601,1741595440415,-500.0,0.00054773,10]
[355804602,1741595440425,-502.97385004,0.00054773,10]
[355804603,1741595440434,-500.0,0.00054773,10]
[355804604,1741595440444,-500.0,0.00054773,10]
[355804605,1741595440453,-160.7614657,0.00054773,10]
[355804606,1741595440463,-501.82412565,0.00054773,10]
[355804607,1741595440472,-504.22717255,0.00054773,10]
[355804608,1741595440481,-303.67528419,0.00054773,10]
[355804609,1741595440491,-214.55622068,0.00054773,10]
[355804610,1741595440500,-499.35639846,0.00054773,10]
[355804611,1741595440510,-500.0,0.00054773,10]
[355804612,1741595440519,-500.0,0.00054773,10]
[355804613,1741595440529,-500.0,0.00054773,10]
[355804614,1741595440539,-500.0,0.00054773,10]
[355804615,1741595440548,-500.0,0.00054773,10]
[355804616,1741595440558,-500.0,0.00054773,10]
[355804617,1741595440568,-500.0,0.00054773,10]
[355804618,1741595440577,-318.60575453,0.00054773,10]
[355804619,1741595440587,-500.0,0.00054773,10]
[355804620,1741595440597,-5350.78024028,0.00054784,4]
[355804705,1741596233412,362.09098201,0.0002,120]
[355804715,1741596450679,833.49125236,0.000189,2]
[355804716,1741596450876,833.49125236,0.000239,2]
[355804717,1741596451068,833.49125236,0.000289,2]
[355804730,1741596562121,-150.0,0.00033999,2]
[355804731,1741596562144,-150.0,0.00035369,2]